bitfinex/quotes_ETHUSD_20251120
["timestamp","ask_amount","ask_price","bid_price","bid_amount"]
[1763640986068,0.0678,3015.5,3014.8,6.6349113]
[1763640987352,0.37780521,3015.5,3014.8,6.6349113]
[1763640987549,1.0917096,3015.5,3014.8,6.6349113]
[1763640987750,0.31000521,3015.4,3014.8,6.6349113]
[1763640988328,0.31002209,3015.4,3015.3,0.6601]
[1763640988651,0.71510439,3015.5,3015.3,0.6601]
[1763640988652,0.0012,3015.5,3015.3,0.6601]
[1763640988962,0.0012,3015.5,3015.4,0.9472]
[1763640989369,0.0012,3015.5,3015.4,4.28575235]
[1763640989571,0.0012,3015.5,3015.4,5.04178596]
[1763640990790,0.0012,3015.5,3015.4,0.4584]
[1763640990933,0.0012,3015.5,3015.0,0.4888]
[1763640991134,0.0012,3015.5,3015.0,3.80551674]
[1763640991366,0.0012,3015.5,3014.8,0.001]
[1763640991367,0.31130701,3015.5,3015.1,0.6802]
[1763640991570,0.31130701,3015.5,3015.4,0.4584]
[1763640991863,0.31130701,3015.5,3015.2,0.4888]
[1763640992067,1.02586204,3015.5,3015.2,0.4888]
[1763640992268,0.31010701,3015.4,3015.2,0.4888]
[1763640992468,0.0012,3015.5,3015.4,0.4584]
[1763640992778,0.0012,3015.5,3015.4,0.9472]
[1763640993288,0.0012,3015.5,3015.4,5.57600625]
[1763640993452,0.0012,3015.5,3015.4,6.46747253]
[1763640994383,0.0012,3015.5,3015.4,6.57947253]
[1763640996587,0.0012,3015.5,3015.4,6.60171527]
[1763640996888,0.0012,3015.5,3015.4,6.57947253]
[1763640997541,0.0012,3015.5,3015.4,6.60171527]
[1763640997982,0.0012,3015.5,3015.4,6.57947253]
[1763640998389,0.0012,3015.5,3015.4,6.60171527]
[1763640998894,0.0012,3015.5,3015.4,10.39171527]
[1763640999043,0.0012,3015.5,3015.4,10.36947253]
[1763640999854,0.002,3015.7,3015.5,1.31249664]
[1763641000054,0.002,3015.7,3015.6,13.52377352]
[1763641000262,0.002,3016.2,3015.7,1.31249664]
[1763641000548,0.002,3016.2,3015.8,0.990504]
[1763641000741,0.002,3016.2,3015.8,1.440604]
[1763641001589,0.002,3016.2,3015.9,0.405504]
[1763641001826,0.002,3016.2,3016.1,8.25775598]
[1763641001993,0.002,3016.2,3016.1,9.12854158]
[1763641002297,0.002,3016.2,3016.1,12.89418151]
[1763641005650,0.002,3016.2,3016.1,13.00618151]
[1763641008283,0.0012,3016.2,3016.1,13.00618151]
[1763641010774,0.002,3016.4,3016.2,1.31249664]
[1763641011094,0.002,3016.4,3016.3,3.55188779]
[1763641011297,0.002,3016.4,3016.3,4.00198779]
[1763641011602,0.002,3016.4,3016.3,10.80030788]
[1763641011902,0.002,3016.4,3016.3,7.18308887]
[1763641012067,0.002,3016.4,3016.3,7.29508887]
[1763641013406,0.002,3016.4,3016.3,6.73298887]
[1763641013566,0.002,3016.4,3016.3,7.29508887]
[1763641013768,0.4615,3016.4,3016.3,4.94749223]
[1763641014094,0.4615,3016.4,3016.3,3.31532009]
[1763641014508,0.002,3016.4,3016.3,4.69531273]
[1763641014679,0.002,3016.4,3016.3,5.14541273]
[1763641014870,0.002,3016.4,3016.3,4.69531273]
[1763641015497,0.002,3016.4,3016.3,5.10081673]
[1763641016302,0.002,3016.4,3016.3,4.62781673]
[1763641016802,0.0883,3016.4,3016.3,4.62781673]
[1763641017197,0.002,3016.4,3016.3,4.62781673]
[1763641017505,0.002,3016.4,3016.3,5.10081673]
[1763641017701,0.002,3016.4,3016.3,5.94244062]
[1763641018506,0.002,3016.4,3016.3,5.46944062]
[1763641019310,0.002,3016.4,3016.3,6.39254062]
[1763641020982,0.0883,3016.4,3016.3,1.74861653]
[1763641021180,0.0883,3016.4,3016.3,0.90699264]
[1763641021181,0.5474,3016.4,3016.3,0.90699264]
[1763641021715,0.5474,3016.4,3016.1,3.3155252]
[1763641021887,0.4611,3016.4,3016.1,6.63106513]
[1763641022093,0.09,3016.1,3016.0,0.90699264]
[1763641022293,0.4611,3016.4,3016.0,0.90699264]
[1763641022507,0.09,3016.1,3016.0,0.90699264]
[1763641022685,0.002,3016.4,3016.0,1.66084386]
[1763641022885,0.002,3016.4,3016.1,0.405504]
[1763641023706,0.002,3016.4,3016.3,0.473]
[1763641023904,0.002,3016.4,3016.3,0.878504]
[1763641024082,0.002,3016.4,3016.3,5.10081673]
[1763641024293,0.002,3016.4,3016.3,5.9424406]
[1763641025017,0.002,3016.4,3016.3,5.0639366]
[1763641025216,0.4615,3016.4,3016.3,3.31532009]
[1763641026123,0.5511,3016.4,3016.3,3.31532009]
[1763641026319,0.002,3016.4,3016.3,4.69531273]
[1763641026617,0.002,3016.4,3016.3,4.22231273]
[1763641027325,0.0883,3016.4,3016.3,4.22231273]
[1763641027696,0.002,3016.4,3016.3,4.22231273]
[1763641027902,0.002,3016.4,3016.3,5.8545902]
[1763641028097,0.002,3016.4,3016.3,6.3046902]
[1763641028700,0.002,3016.4,3016.3,5.8545902]
[1763641028899,0.002,3016.4,3016.3,6.3234902]
[1763641030728,0.095,3016.4,3016.3,5.3815902]
[1763641031029,0.095,3016.4,3016.3,4.69721273]
[1763641031030,0.002,3016.4,3016.3,4.69721273]
[1763641031524,0.002,3016.4,3016.3,5.10271673]
[1763641032131,0.0012,3016.4,3016.3,5.10271673]
[1763641033226,0.0012,3016.4,3016.3,5.57161673]
[1763641034117,0.0012,3016.4,3016.3,5.10271673]
[1763641034316,0.5504,3016.4,3016.3,4.22231273]
[1763641034518,0.5504,3016.4,3016.3,3.31532009]
[1763641034832,0.5504,3016.4,3016.0,0.001]
[1763641034833,0.5504,3016.4,3016.0,3.31664099]
[1763641034999,0.4644,3016.1,3016.0,0.001]
[1763641035198,0.5492,3016.1,3016.0,0.001]
[1763641036406,0.0012,3016.4,3016.0,0.001]
[1763641036804,0.093,3016.1,3016.0,0.001]
[1763641037406,0.0012,3016.4,3016.0,0.001]
[1763641039311,0.0012,3016.4,3016.0,1.03637834]
[1763641039521,0.0012,3016.4,3016.0,1.50527834]
[1763641040245,0.0012,3016.4,3016.0,1.03637834]
[1763641040816,0.093,3016.1,3016.0,0.406504]
[1763641041028,0.093,3016.1,3016.0,3.72215386]
[1763641041314,0.5455,3016.1,3016.0,3.31664986]
[1763641043258,0.093,3016.1,3016.0,0.001]
[1763641043542,0.5455,3016.1,3016.0,0.001]
[1763641045655,0.85598213,3016.1,3016.0,0.001]
[1763641046848,4.88669526,3016.1,3016.0,0.001]
[1763641047346,5.7936879,3016.1,3016.0,0.001]
[1763641047756,13.31883935,3016.1,3015.7,0.001]
[1763641047963,0.1621,3015.8,3015.7,0.001]
[1763641048137,0.45424553,3015.8,3015.7,0.001]
[1763641048447,1.22082766,3015.8,3015.7,0.001]
[1763641048639,1.93600086,3015.8,3015.7,0.001]
[1763641048850,1.64385533,3015.8,3015.7,0.001]
[1763641049031,1.75585533,3015.8,3015.7,0.001]
[1763641049213,4.35655188,3015.8,3015.7,0.001]
[1763641049818,1.04068213,3015.8,3015.7,0.001]
[1763641051652,0.47258213,3015.8,3015.7,0.001]
[1763641051828,0.1576,3016.0,3015.7,0.4646]
[1763641052453,0.1576,3016.0,3015.7,0.001]
[1763641052664,0.112,3016.1,3015.7,0.001]
[1763641052964,0.112,3016.1,3015.7,0.4657]
[1763641053476,0.112,3016.1,3015.8,6.6317395]
[1763641053615,0.31092048,3016.4,3016.0,0.4636]
[1763641053819,0.31092048,3016.4,3015.8,7.34158345]
[1763641053820,0.0012,3016.4,3015.8,7.34158345]
[1763641054063,0.4583,3016.4,3015.8,4.0257137]
[1763641054481,0.76799692,3016.4,3015.8,3.31586975]
[1763641054645,0.76799692,3016.4,3015.8,6.6317395]
[1763641054840,0.31089692,3016.4,3016.3,0.4636]
[1763641055043,0.0012,3016.4,3016.3,1.333804]
[1763641055348,0.0012,3016.4,3016.3,5.49158154]
[1763641055760,0.0012,3016.4,3016.3,6.51057418]
[1763641056144,0.0004,3016.4,3016.3,6.51057418]
[1763641056468,1e-08,3017.1,3017.0,0.869104]
[1763641056772,1e-08,3017.1,3017.0,8.07187445]
[1763641056993,1e-08,3017.1,3017.0,3.15998409]
[1763641057145,1e-08,3017.1,3017.0,2.35279664]
[1763641057343,1e-08,3017.1,3017.0,5.66734751]
[1763641057941,1e-08,3017.1,3017.0,5.09064751]
[1763641058142,1e-08,3017.1,3017.0,4.68514351]
[1763641058976,1e-08,3017.1,3017.0,5.16374351]
[1763641059172,1e-08,3017.1,3017.0,5.06938415]
[1763641060151,0.54530001,3017.1,3016.8,0.90699264]
[1763641060351,0.0046,3016.9,3016.8,0.90699264]
[1763641060881,0.1622,3016.9,3016.8,0.90699264]
[1763641061183,0.0827,3016.9,3016.8,0.90699264]
[1763641061383,0.0827,3016.9,3016.8,4.22176325]
[1763641061977,1e-08,3017.1,3016.8,7.53653386]
[1763641064046,0.2403,3016.9,3016.8,4.22176325]
[1763641064599,0.7029,3016.9,3016.7,3.31487725]
[1763641064796,0.0046,3016.8,3016.1,6.63104418]
[1763641065096,0.1576,3016.9,3016.1,10.65764853]
[1763641065296,0.1576,3016.9,3016.2,0.4786]
[1763641065608,0.1576,3016.9,3016.3,6.63064018]
[1763641066194,0.1576,3016.9,3016.3,9.94596027]
[1763641066503,0.1576,3016.9,3016.3,11.05952274]
[1763641066967,0.1576,3016.9,3016.4,0.90699264]
[1763641067163,0.6241,3016.9,3016.4,0.90699264]
[1763641067388,0.0827,3016.5,3016.4,4.22220282]
[1763641067592,0.0827,3016.5,3016.4,3.31521018]
[1763641067817,0.5453,3016.5,3016.4,3.31521018]
[1763641068966,0.1576,3016.9,3016.4,6.63042036]
[1763641069171,0.6241,3016.9,3016.4,6.63042036]
[1763641069378,0.6241,3016.9,3016.2,7.53785266]
[1763641070681,0.1576,3016.9,3016.2,12.46517935]
[1763641071609,1e-08,3017.1,3016.3,0.4786]
[1763641071980,1e-08,3017.1,3016.2,8.67114934]
[1763641072180,0.4665,3017.0,3016.2,8.67114934]
[1763641072380,0.4665,3017.0,3016.2,11.98657935]
[1763641072585,0.1576,3016.9,3016.2,12.46114934]
[1763641072787,0.1576,3016.9,3016.3,1.24611493]
[1763641073684,0.1576,3016.9,3016.4,6.63042036]
[1763641074120,0.6241,3016.9,3016.4,6.63042036]
[1763641074621,1e-08,3017.1,3016.4,9.94563054]
[1763641074820,1e-08,3017.1,3016.5,0.4786]
[1763641076010,1e-08,3017.1,3016.6,6.62998076]
[1763641076714,1e-08,3017.1,3016.6,3.31499038]
[1763641076899,0.4665,3017.0,3016.6,3.31499038]
[1763641077442,0.0827,3016.7,3016.3,3.31531607]
[1763641077596,0.0827,3016.7,3016.4,0.90699264]
[1763641077799,0.4665,3016.6,3016.4,0.90699264]
[1763641078006,0.0827,3016.5,3016.4,0.90699264]
[1763641078241,0.0827,3016.5,3016.4,4.22220282]
[1763641078532,0.6202,3016.9,3016.4,8.12702574]
[1763641080012,0.1576,3016.9,3016.4,8.12702574]
[1763641080208,0.11320001,3017.2,3016.5,0.4786]
[1763641080610,0.0827,3016.6,3016.4,4.22220282]
[1763641080811,0.0046,3016.5,3016.4,4.22220282]
[1763641081145,0.1622,3016.5,3016.2,3.31536951]
[1763641081320,0.4671,3016.3,3016.2,0.90699264]
[1763641081527,0.1576,3016.5,3016.2,0.90699264]
[1763641081710,0.1576,3016.8,3016.4,0.4757]
[1763641082036,0.112,3016.8,3016.4,0.4757]
[1763641082235,0.112,3016.8,3016.5,3.31510028]
[1763641082816,0.112,3016.8,3016.4,3.31516776]
[1763641083158,0.112,3016.8,3016.4,6.63037794]
[1763641083350,0.112,3016.8,3016.3,3.3153198]
[1763641083557,0.30986984,3017.0,3016.3,3.3153198]
[1763641083558,0.30986984,3017.0,3016.7,0.4757]
[1763641083756,0.77756985,3017.2,3016.4,0.90699264]
[1763641084124,0.31106985,3017.2,3016.5,3.31510028]
[1763641084339,0.4665,3017.1,3016.5,6.63020056]
[1763641084555,0.4665,3017.1,3016.5,3.31510028]
[1763641084556,0.0827,3016.6,3016.5,3.31510028]
[1763641084944,0.0827,3016.6,3016.2,6.63075482]
[1763641085145,0.0827,3016.6,3016.3,0.99472514]
[1763641085568,0.1568,3016.8,3016.3,0.99472514]
[1763641085874,0.1568,3016.8,3016.3,1.47332514]
[1763641086233,0.1568,3016.8,3016.4,6.63042036]
[1763641086430,0.1568,3016.8,3016.3,0.99472514]
[1763641086737,0.4741,3016.4,3016.2,7.53779583]
[1763641086964,0.0759,3016.7,3016.2,7.53779583]
[1763641087152,0.112,3016.8,3016.6,0.4757]
[1763641087939,0.2387,3016.7,3016.2,7.53779583]
[1763641088144,0.2387,3016.7,3016.2,10.85322584]
[1763641088358,0.112,3016.8,3016.3,1.54742258]
[1763641088965,0.18,3016.8,3016.3,1.08542258]
[1763641089132,0.49022071,3016.8,3016.3,1.08542258]
[1763641089527,0.4772,3016.4,3016.2,4.22236582]
[1763641089781,0.3105952,3016.6,3016.2,7.53779583]
[1763641089950,0.4225952,3016.8,3016.2,7.53779583]
[1763641090287,0.4225952,3016.8,3016.2,7.99979583]
[1763641090575,0.3105952,3016.7,3016.2,7.99979583]
[1763641090748,0.3105952,3016.7,3016.3,0.80007958]
[1763641091342,0.4814,3016.4,3016.3,0.80007958]
[1763641091546,0.4814,3016.4,3016.2,4.22236582]
[1763641091747,0.3785952,3016.6,3016.2,4.22236582]
[1763641091748,0.4772,3016.3,3016.2,4.22236582]
[1763641092148,0.3105952,3016.5,3016.2,8.00149583]
[1763641092362,0.31069309,3016.7,3016.2,8.00149583]
[1763641092666,0.31069309,3016.6,3016.2,9.13340823]
[1763641092867,0.31069309,3016.7,3016.2,9.13340823]
[1763641093064,0.31069309,3016.6,3016.2,9.13340823]
[1763641093264,0.31069309,3016.7,3016.2,9.13340823]
[1763641093562,0.31069309,3016.6,3016.2,9.13340823]
[1763641093764,0.31069309,3016.7,3016.3,0.91344082]
[1763641093959,0.31069309,3016.7,3016.2,9.13340823]
[1763641093960,0.31069309,3016.6,3016.2,4.68606582]
[1763641094163,0.78019309,3016.7,3016.2,7.53779583]
[1763641094364,0.31069309,3016.6,3016.2,7.53779583]
[1763641094737,0.31069309,3016.7,3016.3,0.462]
[1763641095047,0.31069309,3016.6,3016.3,0.462]
[1763641095246,0.31069309,3016.7,3016.2,7.53779583]
[1763641095448,0.31069309,3016.6,3016.2,8.66952483]
[1763641095636,0.31069309,3016.7,3016.2,8.66952483]
[1763641095837,0.31069309,3016.6,3016.2,8.66952483]
[1763641096070,0.31069309,3016.7,3016.2,8.66952483]
[1763641096366,0.112,3016.8,3016.2,8.66952483]
[1763641096367,0.31069309,3016.6,3016.2,8.66952483]
[1763641096531,0.31069309,3016.7,3016.2,8.66952483]
[1763641096738,0.31069309,3016.6,3016.2,8.66952483]
[1763641096932,0.31069309,3016.7,3016.2,8.66952483]
[1763641097138,0.31069309,3016.6,3016.2,8.66952483]
[1763641097366,0.31069309,3016.7,3016.3,1.1986019]
[1763641097647,0.31069309,3016.6,3016.3,1.1986019]
[1763641097860,0.31069309,3016.7,3016.3,1.1986019]
[1763641098063,0.5815,3016.8,3016.3,1.1986019]
[1763641098064,0.31069309,3016.6,3016.3,1.1986019]
[1763641098384,0.71644664,3017.1,3016.7,0.4637]
[1763641098587,0.31086848,3017.0,3016.8,0.9257]
[1763641098870,0.00120001,3017.2,3016.8,0.462]
[1763641098871,0.31086848,3017.1,3016.8,0.462]
[1763641099036,0.31086848,3017.0,3016.9,0.4637]
[1763641099234,0.31086848,3017.1,3016.8,0.462]
[1763641099439,0.31086848,3017.0,3016.9,0.4637]
[1763641099634,0.31206849,3017.2,3017.1,0.4637]
[1763641100359,0.31206849,3017.2,3017.1,3.77814101]
[1763641100360,0.00120001,3017.2,3017.1,3.77814101]
[1763641100540,0.31206849,3017.2,3017.1,3.77814101]
[1763641100742,0.31206849,3017.2,3016.9,3.31463806]
[1763641100938,0.31206849,3017.2,3016.9,7.07790161]
[1763641101271,0.31206849,3017.2,3016.9,3.76324087]
[1763641101467,0.31206849,3017.2,3016.9,7.07790161]
[1763641101667,0.31206849,3017.2,3016.9,7.53990161]
[1763641101965,0.31206849,3017.2,3016.9,7.07790161]
[1763641102173,0.46206849,3017.2,3016.9,7.07790161]
[1763641102374,0.4814,3017.0,3016.9,3.31463806]
[1763641102677,0.4632176,3017.0,3016.9,3.31463806]
[1763641103651,0.31065758,3017.1,3016.9,3.31463806]
[1763641103872,0.15120001,3017.2,3016.9,3.31463806]
[1763641104282,0.15040001,3017.2,3016.9,3.31463806]
[1763641104584,0.15040001,3017.2,3016.5,3.88907788]
[1763641104585,0.15040001,3017.2,3016.7,0.90699264]
[1763641104750,0.15040001,3017.2,3016.7,2.00339288]
[1763641105080,0.15040001,3017.2,3016.8,0.462]
[1763641106464,0.15040001,3017.2,3016.9,3.31466074]
[1763641106664,0.15040001,3017.2,3016.9,6.62932148]
[1763641107292,0.00040001,3017.2,3016.9,6.62932148]
[1763641107498,0.00040001,3017.2,3017.1,0.4637]
[1763641107795,0.00040001,3017.2,3016.9,7.33845363]
[1763641108156,0.00040001,3017.2,3016.9,4.02379289]
[1763641108357,0.00040001,3017.2,3016.9,3.31466074]
[1763641108553,0.00040001,3017.2,3016.9,6.62932148]
[1763641109959,0.00040001,3017.2,3017.1,0.494]
[1763641110154,0.00040001,3017.2,3017.1,1.398904]
[1763641110493,0.00040001,3017.2,3017.1,5.62033765]
[1763641110693,0.002,3017.6,3017.2,2.30589664]
[1763641110899,0.002,3017.8,3017.2,2.30589664]
[1763641110900,0.002,3017.8,3017.7,6.06620381]
[1763641111102,0.002,3017.8,3017.7,7.17160381]
[1763641111699,0.002,3017.8,3017.7,7.05960381]
[1763641112002,0.002,3017.8,3017.7,2.41789664]
[1763641112207,0.002,3017.8,3017.7,3.13505702]
[1763641112579,0.002,3017.8,3017.7,6.44883903]
[1763641112776,0.002,3017.8,3017.7,6.33683903]
[1763641116105,0.002,3017.8,3017.7,6.35901858]
[1763641116264,0.002,3017.8,3017.7,6.33683903]
[1763641117469,0.002,3017.8,3017.7,6.35901858]
[1763641117779,0.1576,3019.4,3017.8,1.31249664]
[1763641117978,0.1576,3019.4,3017.8,10.07622509]
[1763641118197,0.6178,3019.4,3017.8,10.07622509]
[1763641118798,0.6178,3019.4,3017.8,13.3898973]
[1763641119818,0.4602,3019.2,3017.8,13.3898973]
[1763641120144,0.1576,3019.4,3017.8,7.04143782]
[1763641120145,0.4602,3018.6,3017.8,7.04143782]
[1763641120627,0.1635,3018.8,3017.8,6.52393382]
[1763641120915,0.1635,3018.8,3017.8,6.63593382]
[1763641121120,0.6237,3018.8,3017.8,6.63593382]
[1763641121306,0.6237,3018.8,3017.8,7.04143782]
[1763641122132,0.1635,3018.8,3017.8,7.00793782]
[1763641122325,0.6237,3018.8,3017.8,7.00793782]
[1763641123010,0.6237,3018.8,3017.8,10.79793782]
[1763641124412,0.1635,3018.8,3017.8,17.2583973]
[1763641124723,0.6178,3019.4,3017.9,0.405504]
[1763641124930,0.6178,3019.4,3018.5,9.93871128]
[1763641125103,0.4602,3019.3,3018.5,10.05071128]
[1763641125497,0.4602,3019.3,3018.5,10.51661128]
[1763641127119,0.4602,3019.3,3018.5,3.42490376]
[1763641127313,0.4602,3019.3,3018.5,4.7447407]
[1763641127844,0.4622,3019.3,3018.5,4.7447407]
[1763641128140,0.4622,3019.3,3018.5,8.52354446]
[1763641128347,0.4614,3019.3,3018.5,8.52354446]
[1763641129809,0.002,3019.3,3018.6,1.80054646]
[1763641130012,0.002,3019.3,3018.9,0.90699264]
[1763641130242,0.002,3019.3,3019.2,0.405504]
[1763641130841,0.002,3019.3,3019.2,0.894704]
[1763641131949,0.002,3019.3,3019.2,0.91684239]
[1763641132347,0.002,3019.3,3019.2,5.13597069]
[1763641132523,0.002,3019.3,3019.2,6.45480391]
[1763641134346,0.002,3019.7,3019.6,1.31249664]
[1763641134576,0.002,3020.0,3019.6,8.37415612]
[1763641134884,0.002,3020.0,3019.9,0.894704]
[1763641135254,0.002,3020.0,3019.9,1.360604]
[1763641135456,0.002,3020.0,3019.9,1.472604]
[1763641136579,0.002,3020.0,3019.9,5.69096456]
[1763641136877,0.1568,3021.3,3019.9,5.69096456]
[1763641136878,0.617,3021.3,3020.0,1.31249664]
[1763641137082,0.002,3021.4,3021.2,0.4892]
[1763641137285,0.002,3021.4,3021.3,1.80169664]
[1763641137485,0.002,3021.4,3021.3,2.26759664]
[1763641137842,0.002,3021.4,3021.3,0.517504]
[1763641138273,0.002,3021.4,3021.3,1.006704]
[1763641138476,0.0909,3021.4,3021.2,0.405504]
[1763641138881,0.002,3021.4,3021.3,0.4892]
[1763641139041,0.002,3021.4,3021.2,1.2099861]
[1763641140672,0.0889,3021.3,3020.4,0.90699264]
[1763641140867,0.4585,3021.4,3020.8,0.405504]
[1763641141567,0.2374,3020.9,3020.4,0.90699264]
[1763641141747,0.4585,3021.4,3020.5,0.112]
[1763641141944,0.4585,3021.4,3020.8,0.4892]
[1763641141945,0.002,3021.4,3020.8,0.4892]
[1763641142168,0.4602,3021.3,3020.5,0.5779]
[1763641142354,0.002,3021.4,3020.6,0.405504]
[1763641142559,0.002,3021.4,3020.8,7.77295612]
[1763641142887,0.002,3021.4,3021.0,0.405504]
[1763641143583,0.002,3021.4,3021.0,0.112]
[1763641145290,0.0722,3021.4,3020.6,3.31060054]
[1763641145591,0.2136,3021.3,3020.7,0.90699264]
[1763641145884,0.2136,3021.3,3019.9,7.36070349]
[1763641146090,0.1453,3021.2,3019.9,1.01224401]
[1763641146278,0.1453,3021.2,3019.9,0.112]
[1763641146464,0.4602,3021.1,3019.9,0.112]
[1763641146661,3.31016219,3021.0,3020.0,6.62251654]
[1763641147061,0.4602,3020.9,3020.1,0.90699264]
[1763641147660,0.0889,3020.2,3020.0,3.31125827]
[1763641147867,0.4602,3020.9,3019.6,6.62339382]
[1763641147868,0.0889,3020.1,3019.6,6.62339382]
[1763641148053,0.4602,3020.8,3019.7,0.90699264]
[1763641148253,0.4789,3020.9,3019.7,0.90699264]
[1763641148790,3.31038135,3020.8,3019.9,0.90699264]
[1763641149183,0.4789,3020.7,3019.9,0.90699264]
[1763641149356,0.4789,3020.7,3019.9,1.99113518]
[1763641150888,3.78939762,3020.7,3020.0,3.31125827]
[1763641151105,0.4789,3020.7,3020.0,6.62251654]
[1763641151400,0.0704,3020.1,3020.0,3.31125827]
[1763641152248,0.0704,3020.1,3019.9,4.21835633]
[1763641152249,0.5444,3020.1,3019.9,3.31136482]
[1763641152494,0.0047,3020.0,3019.9,4.21835746]
[1763641153892,0.0047,3020.0,3019.9,3.31136482]
[1763641154995,0.4789,3020.4,3019.7,1.31249664]
[1763641155169,0.4789,3020.6,3019.9,0.4776]
[1763641155595,0.4789,3020.6,3019.8,1.17369559]
[1763641155993,0.4789,3020.6,3019.7,0.90699264]
[1763641156862,0.0696,3019.8,3019.7,0.90699264]
[1763641157057,0.2255,3019.8,3019.7,4.21857988]
[1763641157287,0.7027,3019.8,3019.7,4.21857988]
[1763641158103,0.1559,3020.0,3019.7,7.53016712]
[1763641159381,0.1559,3020.0,3019.7,4.21857988]
[1763641159581,0.0704,3019.8,3019.7,4.21857988]
[1763641159804,0.1559,3020.0,3019.7,7.53016712]
[1763641161112,0.1559,3020.3,3019.9,0.4776]
[1763641161920,0.30884683,3020.5,3019.9,0.4776]
[1763641162137,0.46474683,3020.5,3019.9,0.4776]
[1763641162306,0.94364683,3020.5,3019.7,8.72636197]
[1763641162502,0.30884683,3020.4,3019.7,8.72636197]
[1763641162801,0.78774683,3020.4,3019.7,7.64216712]
[1763641163129,0.78774683,3020.4,3019.7,7.53016712]
[1763641163337,0.0704,3019.8,3019.7,4.21857988]
[1763641163492,0.4748,3020.3,3019.7,7.53016712]
[1763641164012,0.30895233,3020.4,3019.7,7.53016712]
[1763641164326,0.4789,3020.4,3019.7,8.34332383]
[1763641164501,0.78785233,3020.4,3019.7,8.34332383]
[1763641164696,0.30895233,3020.4,3019.7,8.34332383]
[1763641164903,0.002,3020.1,3019.7,8.34332383]
[1763641165325,0.002,3020.1,3019.7,8.83272383]
[1763641167293,0.002,3020.1,3020.0,0.4776]
[1763641167733,0.0724,3020.1,3019.8,4.45824741]
[1763641168228,0.002,3020.1,3019.8,4.45824741]
[1763641169227,0.002,3020.1,3019.9,6.62273584]
[1763641169531,0.002,3020.1,3019.9,3.31136792]
[1763641169705,0.002,3020.1,3019.9,6.62273584]
[1763641169913,0.002,3020.1,3019.9,7.40462067]
[1763641170827,0.5451,3020.0,3019.9,4.09325275]
[1763641171064,0.5451,3020.0,3019.9,3.31136792]
[1763641171230,0.0581,3020.0,3019.9,3.31136792]
[1763641173501,0.002,3020.1,3020.0,0.405504]
[1763641173726,0.002,3020.1,3020.0,1.90209664]
[1763641173927,0.4793,3020.1,3020.0,0.90699264]
[1763641174327,0.5513,3020.1,3019.9,6.62273584]
[1763641174528,0.5513,3020.1,3019.9,3.31136792]
[1763641174529,0.072,3020.0,3019.9,3.31136792]
[1763641174809,0.002,3020.1,3019.9,6.62273584]
[1763641175219,0.002,3020.1,3019.7,0.90699264]
[1763641175220,0.002,3020.1,3019.8,6.62295516]
[1763641175420,0.002,3020.1,3019.9,1.08415057]
[1763641175638,0.002,3020.1,3019.8,6.62295516]
[1763641176345,0.0012,3020.1,3019.8,6.62295516]
[1763641176545,0.0012,3020.1,3019.8,7.07925516]
[1763641176765,0.0012,3020.1,3020.0,0.4776]
[1763641177047,0.0012,3020.1,3020.0,1.339404]
[1763641177256,0.0012,3020.1,3020.0,7.06119695]
[1763641177463,0.0012,3020.1,3020.0,6.19939295]
[1763641177761,0.0012,3020.1,3020.0,5.72179295]
[1763641178476,0.0593,3020.1,3020.0,3.31125827]
[1763641178621,0.0593,3020.1,3019.7,3.31155968]
[1763641178622,0.5463,3020.1,3019.7,3.31155968]
[1763641178827,0.31054243,3020.0,3019.7,0.90699264]
[1763641179039,0.2182,3019.8,3019.7,0.90699264]
[1763641179551,0.701,3019.8,3019.7,4.21857988]
[1763641179753,0.701,3019.8,3019.6,0.001]
[1763641179944,0.80296764,3019.7,3019.6,0.001]
[1763641181761,4.11455488,3019.7,3019.6,0.001]
[1763641181961,0.80296764,3019.7,3019.6,0.001]
[1763641183573,4.11455488,3019.7,3019.6,0.001]
[1763641184064,0.80296764,3019.7,3019.6,0.001]
[1763641184840,4.11455488,3019.7,3019.6,0.001]
[1763641185169,4.82904034,3019.7,3019.6,0.001]
[1763641187337,4.82904034,3019.7,3019.5,0.001]
[1763641187338,9.03499619,3019.7,3019.5,0.001]
[1763641187537,1.5696531,3019.6,3019.5,0.001]
[1763641187755,4.88135001,3019.6,3019.5,0.001]
[1763641190560,1.5696531,3019.6,3019.5,0.001]
[1763641190892,4.88135001,3019.6,3019.5,0.001]
[1763641192191,1.0820531,3019.6,3019.5,0.001]
[1763641192489,0.47956764,3019.6,3019.5,0.001]
[1763641192692,0.169,3019.6,3019.5,0.001]
[1763641192862,0.47956764,3019.6,3019.5,0.001]
[1763641193065,0.057,3019.6,3019.5,0.001]
[1763641193287,0.112,3019.6,3019.5,0.001]
[1763641193661,0.1738,3019.6,3019.5,0.001]
[1763641194056,0.112,3019.6,3019.5,0.001]
[1763641194283,0.112,3019.6,3019.5,0.4611]
[1763641195691,0.112,3019.6,3019.5,0.9139]
[1763641196062,0.112,3019.9,3019.6,6.62339382]
[1763641196262,0.112,3019.9,3019.6,7.8299232]
[1763641196562,0.112,3019.9,3019.8,0.4601]
[1763641196964,0.0012,3020.1,3019.8,0.4601]
[1763641196965,0.0012,3020.1,3019.8,0.9129]
[1763641197181,0.0012,3020.1,3020.0,0.4601]
[1763641198288,0.0012,3020.1,3020.0,3.77135827]
[1763641198488,0.0012,3020.1,3020.0,4.52491329]
[1763641199574,0.0012,3020.1,3020.0,3.77135827]
[1763641199775,0.0012,3020.1,3019.9,3.31134051]
[1763641200309,0.0004,3020.1,3020.0,0.9129]
[1763641200466,0.0004,3020.1,3020.0,4.22415827]
[1763641201208,0.0004,3020.1,3020.0,0.4601]
[1763641201412,0.0621,3020.1,3019.8,3.31141711]
[1763641201726,0.0004,3020.1,3019.7,4.21852835]
[1763641202002,0.0004,3020.1,3019.7,4.71585412]
[1763641202209,0.0004,3020.1,3019.7,8.48024136]
[1763641202510,0.0004,3020.1,3019.5,0.001]
[1763641202511,0.0617,3019.8,3019.5,0.001]